[Event "Late-Titled-Tuesday-Blitz-September-19-2023"]
[Site "Chess.com"]
[Date "2023.09.19"]
[Round "4"]
[White "jamengrand"]
[Black "elpatodice"]
[Result "0-1"]
[WhiteElo "2243"]
[BlackElo "2368"]
[TimeControl "180+1"]
[EndTime "14:36:39 PDT"]
[Termination "elpatodice won by resignation"]

1. e4 {[%clk 0:03:00.9]} 1... c5 {[%clk 0:02:56.8]} 2. Nf3 {[%clk 0:03:00.7]}
2... g6 {[%clk 0:02:56.4]} 3. d4 {[%clk 0:02:59.5]} 3... cxd4 {[%clk 0:02:57]}
4. c3 {[%clk 0:03:00.1]} 4... Bg7 {[%clk 0:02:56.1]} 5. cxd4 {[%clk 0:03:00.2]}
5... d5 {[%clk 0:02:55.9]} 6. e5 {[%clk 0:03:00.4]} 6... Nh6 {[%clk 0:02:56.2]}
7. Bb5+ {[%clk 0:02:59.3]} 7... Nc6 {[%clk 0:02:55.7]} 8. Bxc6+ {[%clk
0:02:57.6]} 8... bxc6 {[%clk 0:02:55.6]} 9. O-O {[%clk 0:02:58.2]} 9... O-O
{[%clk 0:02:55.8]} 10. Bxh6 {[%clk 0:02:58.1]} 10... Bxh6 {[%clk 0:02:55.6]} 11.
Nc3 {[%clk 0:02:58.6]} 11... f6 {[%clk 0:02:34.6]} 12. h3 {[%clk 0:02:54.4]}
12... Rb8 {[%clk 0:02:26.6]} 13. b3 {[%clk 0:02:51.4]} 13... Qa5 {[%clk
0:02:21.4]} 14. Na4 {[%clk 0:02:51.2]} 14... Bf5 {[%clk 0:02:19.3]} 15. Re1
{[%clk 0:02:50.2]} 15... Be4 {[%clk 0:02:19.1]} 16. Nc5 {[%clk 0:02:40.1]} 16...
Bxf3 {[%clk 0:02:17.6]} 17. Qxf3 {[%clk 0:02:39.8]} 17... fxe5 {[%clk
0:02:17.9]} 18. Qg4 {[%clk 0:02:39.3]} 18... Qd2 {[%clk 0:01:42.6]} 19. Re2
{[%clk 0:02:37.2]} 19... Qxd4 {[%clk 0:01:41.2]} 20. Qe6+ {[%clk 0:02:30.4]}
20... Rf7 {[%clk 0:01:34.8]} 21. Qxe5 {[%clk 0:02:23.8]} 21... Qxe5 {[%clk
0:01:30]} 22. Rxe5 {[%clk 0:02:24.7]} 22... Bg7 {[%clk 0:01:29.8]} 23. Rae1
{[%clk 0:02:21.9]} 23... Bxe5 {[%clk 0:01:29.3]} 24. Rxe5 {[%clk 0:02:22.8]}
24... Rd8 {[%clk 0:00:59.5]} 25. Kf1 {[%clk 0:02:08.7]} 25... d4 {[%clk
0:00:54.7]} 26. Ke2 {[%clk 0:02:08.6]} 26... Rd5 {[%clk 0:00:54.7]} 27. Rxd5
{[%clk 0:02:05.1]} 27... cxd5 {[%clk 0:00:55.6]} 28. Ne6 {[%clk 0:02:03]} 28...
Rf6 {[%clk 0:00:50.5]} 29. Nxd4 {[%clk 0:02:02.3]} 29... Ra6 {[%clk 0:00:50.5]}
30. a4 {[%clk 0:02:01.8]} 30... Rb6 {[%clk 0:00:50.7]} 31. a5 {[%clk 0:01:54.8]}
31... Rb4 {[%clk 0:00:50.2]} 32. Nc6 {[%clk 0:01:55.2]} 32... Rxb3 {[%clk
0:00:49.8]} 33. Nxe7+ {[%clk 0:01:55.5]} 33... Kf7 {[%clk 0:00:50.4]} 34. Nxd5
{[%clk 0:01:55.8]} 34... Rb5 {[%clk 0:00:47.3]} 35. Nf4 {[%clk 0:01:51.2]} 35...
Rxa5 {[%clk 0:00:47.1]} 36. g4 {[%clk 0:01:49.5]} 36... Rc5 {[%clk 0:00:42.6]}
37. Kd3 {[%clk 0:01:49.6]} 37... a5 {[%clk 0:00:42.1]} 38. Kd4 {[%clk
0:01:50.1]} 38... Rc2 {[%clk 0:00:41.7]} 39. f3 {[%clk 0:01:50.1]} 39... a4
{[%clk 0:00:41.7]} 40. Kd3 {[%clk 0:01:50.2]} 40... Rc8 {[%clk 0:00:37.9]} 41.
Nd5 {[%clk 0:01:47.9]} 41... a3 {[%clk 0:00:37.2]} 42. Nb4 {[%clk 0:01:48.1]}
42... Kf6 {[%clk 0:00:35.4]} 43. f4 {[%clk 0:01:47.5]} 43... h5 {[%clk
0:00:35.1]} 44. Nd5+ {[%clk 0:01:43.2]} 44... Ke6 {[%clk 0:00:32.2]} 45. Nb4
{[%clk 0:01:43.3]} 45... hxg4 {[%clk 0:00:32.1]} 46. hxg4 {[%clk 0:01:43]} 46...
Rc7 {[%clk 0:00:26.2]} 47. Kd4 {[%clk 0:01:39.2]} 47... Ra7 {[%clk 0:00:19.8]}
48. Na2 {[%clk 0:01:38.9]} 48... Ra4+ {[%clk 0:00:20]} 49. Ke3 {[%clk
0:01:38.9]} 49... Kd6 {[%clk 0:00:19.1]} 50. f5 {[%clk 0:01:38.5]} 50... g5
{[%clk 0:00:18.2]} 51. Kf3 {[%clk 0:01:36.3]} 51... Rf4+ {[%clk 0:00:17.5]} 52.
Ke3 {[%clk 0:01:35.9]} 52... Rxg4 {[%clk 0:00:17.4]} 53. Nc3 {[%clk 0:01:36.4]}
53... Rg3+ {[%clk 0:00:17.2]} 54. Kd2 {[%clk 0:01:36.7]} 54... Rxc3 {[%clk
0:00:15.9]} 55. Kxc3 {[%clk 0:01:36.8]} 55... g4 {[%clk 0:00:16.6]} 56. f6
{[%clk 0:01:35.9]} 56... Ke6 {[%clk 0:00:16.4]} 0-1

[Event "Late-Titled-Tuesday-Blitz-September-19-2023"]
[Site "Chess.com"]
[Date "2023.09.19"]
[Round "4"]
[White "maurovargas01"]
[Black "valemava"]
[Result "0-1"]
[WhiteElo "1869"]
[BlackElo "2284"]
[TimeControl "180+1"]
[EndTime "14:36:39 PDT"]
[Termination "valemava won on time"]

1. e4 {[%clk 0:03:00.3]} 1... c5 {[%clk 0:02:58.4]} 2. Nc3 {[%clk 0:03:00]} 2...
Qa5 {[%clk 0:02:57.2]} 3. f4 {[%clk 0:03:00.8]} 3... a6 {[%clk 0:02:56.4]} 4. d3
{[%clk 0:02:59.4]} 4... b5 {[%clk 0:02:56.7]} 5. Bd2 {[%clk 0:02:57.7]} 5... Bb7
{[%clk 0:02:56.2]} 6. Nd5 {[%clk 0:02:56.1]} 6... Qd8 {[%clk 0:02:55.1]} 7. Ne3
{[%clk 0:02:53.7]} 7... e6 {[%clk 0:02:54.7]} 8. Nf3 {[%clk 0:02:52.1]} 8... d5
{[%clk 0:02:54.9]} 9. e5 {[%clk 0:02:48.9]} 9... g6 {[%clk 0:02:53.7]} 10. g4
{[%clk 0:02:43.5]} 10... d4 {[%clk 0:02:53.5]} 11. Ng2 {[%clk 0:02:32.5]} 11...
h5 {[%clk 0:02:52.7]} 12. g5 {[%clk 0:02:22.7]} 12... Ne7 {[%clk 0:02:49.2]} 13.
Ngh4 {[%clk 0:02:22.4]} 13... Nf5 {[%clk 0:02:48.1]} 14. Nxf5 {[%clk 0:02:22]}
14... exf5 {[%clk 0:02:47.9]} 15. h4 {[%clk 0:02:11.3]} 15... Nc6 {[%clk
0:02:43.4]} 16. Bg2 {[%clk 0:02:08.2]} 16... Qc7 {[%clk 0:02:43.5]} 17. O-O
{[%clk 0:02:06.9]} 17... Nd8 {[%clk 0:02:43.5]} 18. Qe1 {[%clk 0:02:01.8]} 18...
Ne6 {[%clk 0:02:43.4]} 19. Rc1 {[%clk 0:01:38.5]} 19... Bc6 {[%clk 0:02:40.9]}
20. a3 {[%clk 0:01:37.6]} 20... Qb7 {[%clk 0:02:40.1]} 21. Qg3 {[%clk
0:01:32.9]} 21... a5 {[%clk 0:02:37.2]} 22. Qe1 {[%clk 0:01:27.5]} 22... a4
{[%clk 0:02:35.8]} 23. Qg3 {[%clk 0:01:24.4]} 23... Be7 {[%clk 0:02:35.3]} 24.
c3 {[%clk 0:01:15.8]} 24... dxc3 {[%clk 0:02:31.8]} 25. bxc3 {[%clk 0:01:07.6]}
25... O-O {[%clk 0:02:31.2]} 26. Rb1 {[%clk 0:01:06.2]} 26... Rfd8 {[%clk
0:02:29.6]} 27. Ne1 {[%clk 0:01:04.2]} 27... Bxg2 {[%clk 0:02:27.9]} 28. Qxg2
{[%clk 0:01:04.1]} 28... Qxg2+ {[%clk 0:02:27.7]} 29. Kxg2 {[%clk 0:01:04.2]}
29... Rab8 {[%clk 0:02:27.6]} 30. Kf3 {[%clk 0:00:55.3]} 30... c4 {[%clk
0:02:26.4]} 31. d4 {[%clk 0:00:53.7]} 31... Bxa3 {[%clk 0:02:25.9]} 32. Nc2
{[%clk 0:00:49]} 32... Be7 {[%clk 0:02:24.4]} 33. Ne3 {[%clk 0:00:44.9]} 33...
Nc7 {[%clk 0:02:23]} 34. Rfd1 {[%clk 0:00:37.8]} 34... a3 {[%clk 0:02:22.1]} 35.
Ra1 {[%clk 0:00:36.3]} 35... Ra8 {[%clk 0:02:20.5]} 36. Ra2 {[%clk 0:00:36.2]}
36... Nd5 {[%clk 0:02:05.1]} 37. Rda1 {[%clk 0:00:32.2]} 37... Nxc3 {[%clk
0:01:46.5]} 38. Bxc3 {[%clk 0:00:31.4]} 38... b4 {[%clk 0:01:47]} 39. Be1 {[%clk
0:00:24.3]} 39... b3 {[%clk 0:01:47]} 40. Rxa3 {[%clk 0:00:23.3]} 40... Bxa3
{[%clk 0:01:46.1]} 41. Nxc4 {[%clk 0:00:20.1]} 41... b2 {[%clk 0:01:37.4]} 42.
Rb1 {[%clk 0:00:12]} 42... Rxd4 {[%clk 0:01:37.3]} 43. Nxb2 {[%clk 0:00:09.4]}
43... Rb8 {[%clk 0:01:35.5]} 44. Bc3 {[%clk 0:00:09.1]} 44... Re4 {[%clk
0:01:33.1]} 45. Kf2 {[%clk 0:00:01.3]} 45... Bc5+ {[%clk 0:01:32.4]} 46. Kf3
{[%clk 0:00:02.2]} 46... Re3+ {[%clk 0:01:32.4]} 47. Kg2 {[%clk 0:00:01.4]}
47... Rxc3 {[%clk 0:01:32.5]} 0-1

[Event "Late-Titled-Tuesday-Blitz-September-19-2023"]
[Site "Chess.com"]
[Date "2023.09.19"]
[Round "4"]
[White "Botvinnak"]
[Black "PawnEatingZombie"]
[Result "1/2-1/2"]
[WhiteElo "2328"]
[BlackElo "2197"]
[TimeControl "180+1"]
[EndTime "14:36:43 PDT"]
[Termination "Game drawn - insufficient material"]

1. b3 {[%clk 0:02:42.2]} 1... c5 {[%clk 0:02:57.2]} 2. Bb2 {[%clk 0:02:41.8]}
2... Nc6 {[%clk 0:02:57.8]} 3. Nf3 {[%clk 0:02:40.9]} 3... d6 {[%clk 0:02:54.5]}
4. e3 {[%clk 0:02:41.3]} 4... e5 {[%clk 0:02:54.3]} 5. Bb5 {[%clk 0:02:40.5]}
5... Ne7 {[%clk 0:02:51.2]} 6. O-O {[%clk 0:02:40.4]} 6... g6 {[%clk 0:02:50.9]}
7. d4 {[%clk 0:02:40.6]} 7... exd4 {[%clk 0:02:49.6]} 8. exd4 {[%clk 0:02:40.6]}
8... Bg7 {[%clk 0:02:50.1]} 9. Na3 {[%clk 0:02:39.2]} 9... O-O {[%clk 0:02:49]}
10. Rb1 {[%clk 0:02:36.4]} 10... a6 {[%clk 0:02:44.9]} 11. Be2 {[%clk
0:02:34.5]} 11... Bf5 {[%clk 0:02:29.1]} 12. Nc4 {[%clk 0:02:32.8]} 12... b5
{[%clk 0:02:13.1]} 13. Ne3 {[%clk 0:02:32.6]} 13... Be4 {[%clk 0:02:13.8]} 14.
Ng5 {[%clk 0:02:32.4]} 14... cxd4 {[%clk 0:02:00.6]} 15. Nxe4 {[%clk 0:02:22.4]}
15... dxe3 {[%clk 0:01:59.2]} 16. Bxg7 {[%clk 0:02:22.5]} 16... Kxg7 {[%clk
0:01:55.6]} 17. Qxd6 {[%clk 0:02:22.5]} 17... Qxd6 {[%clk 0:01:53.8]} 18. Nxd6
{[%clk 0:02:22.6]} 18... exf2+ {[%clk 0:01:53.8]} 19. Rxf2 {[%clk 0:02:22.6]}
19... Nd4 {[%clk 0:01:47.6]} 20. Bd3 {[%clk 0:02:21.8]} 20... Rad8 {[%clk
0:01:38.9]} 21. Nb7 {[%clk 0:02:21.5]} 21... Rd7 {[%clk 0:01:15.1]} 22. Nc5
{[%clk 0:02:21.1]} 22... Rd6 {[%clk 0:01:15.7]} 23. Re1 {[%clk 0:02:19.7]} 23...
Nd5 {[%clk 0:00:57.4]} 24. Re4 {[%clk 0:02:16.6]} 24... Nb4 {[%clk 0:00:53.2]}
25. Re7 {[%clk 0:02:13.5]} 25... Nxd3 {[%clk 0:00:49.7]} 26. cxd3 {[%clk
0:02:13.5]} 26... a5 {[%clk 0:00:28]} 27. Nd7 {[%clk 0:02:11.4]} 27... Nf5
{[%clk 0:00:11.8]} 28. Nxf8 {[%clk 0:02:08.8]} 28... Nxe7 {[%clk 0:00:10.4]} 29.
Nxh7 {[%clk 0:02:09.1]} 29... Rxd3 {[%clk 0:00:08.3]} 30. Ng5 {[%clk 0:02:08.7]}
30... f6 {[%clk 0:00:05.5]} 31. Ne6+ {[%clk 0:02:08.4]} 31... Kf7 {[%clk
0:00:06.1]} 32. Ng5+ {[%clk 0:02:08.3]} 32... Kg7 {[%clk 0:00:04]} 33. Ne4
{[%clk 0:02:08.2]} 33... Rd1+ {[%clk 0:00:03.9]} 34. Rf1 {[%clk 0:02:08.7]}
34... Rxf1+ {[%clk 0:00:04.8]} 35. Kxf1 {[%clk 0:02:09.1]} 35... Nd5 {[%clk
0:00:05.3]} 36. Ke2 {[%clk 0:02:06.6]} 36... f5 {[%clk 0:00:04.4]} 37. Nd6
{[%clk 0:02:05]} 37... Nc3+ {[%clk 0:00:05.3]} 38. Kd3 {[%clk 0:02:05.4]} 38...
Nxa2 {[%clk 0:00:06.2]} 39. Nxb5 {[%clk 0:02:05.9]} 39... Nc1+ {[%clk
0:00:06.3]} 40. Kc2 {[%clk 0:02:04.9]} 40... Ne2 {[%clk 0:00:06.1]} 41. Nc3
{[%clk 0:02:00.5]} 41... Nf4 {[%clk 0:00:04.1]} 42. g3 {[%clk 0:02:00.5]} 42...
Ne6 {[%clk 0:00:03.1]} 43. Kd3 {[%clk 0:01:59.3]} 43... Kf6 {[%clk 0:00:03.7]}
44. Kc4 {[%clk 0:01:59]} 44... g5 {[%clk 0:00:04.3]} 45. Nd5+ {[%clk 0:01:58.4]}
45... Ke5 {[%clk 0:00:03.9]} 46. Ne7 {[%clk 0:01:50.6]} 46... f4 {[%clk
0:00:04.1]} 47. gxf4+ {[%clk 0:01:50.7]} 47... gxf4 {[%clk 0:00:04.1]} 48. Nc6+
{[%clk 0:01:46.9]} 48... Ke4 {[%clk 0:00:04.1]} 49. Kc3 {[%clk 0:01:45]} 49...
f3 {[%clk 0:00:04.4]} 50. Kd2 {[%clk 0:01:45.3]} 50... Nd4 {[%clk 0:00:04.2]}
51. Nxa5 {[%clk 0:01:43.6]} 51... Nxb3+ {[%clk 0:00:02.4]} 52. Nxb3 {[%clk
0:01:42.7]} 52... Kf4 {[%clk 0:00:03.3]} 53. Ke1 {[%clk 0:01:42]} 53... Kg4
{[%clk 0:00:04.2]} 54. Kf2 {[%clk 0:01:42.4]} 54... Kh3 {[%clk 0:00:04.9]} 55.
Nd4 {[%clk 0:01:40.9]} 55... Kxh2 {[%clk 0:00:04.9]} 56. Nf5 {[%clk 0:01:41.3]}
56... Kh3 {[%clk 0:00:05.1]} 57. Ne3 {[%clk 0:01:41.7]} 57... Kh4 {[%clk
0:00:04.8]} 58. Nc4 {[%clk 0:01:42.5]} 58... Kg5 {[%clk 0:00:05.3]} 59. Ne5
{[%clk 0:01:43]} 59... Kf4 {[%clk 0:00:05.8]} 60. Nxf3 {[%clk 0:01:43.5]}
1/2-1/2

[Event "Late-Titled-Tuesday-Blitz-September-19-2023"]
[Site "Chess.com"]
[Date "2023.09.19"]
[Round "4"]
[White "AlexOstrovskiy"]
[Black "IvanRadivojevic"]
[Result "1-0"]
[WhiteElo "2652"]
[BlackElo "2488"]
[TimeControl "180+1"]
[EndTime "14:36:48 PDT"]
[Termination "AlexOstrovskiy won by resignation"]

1. d4 {[%clk 0:03:00.9]} 1... Nf6 {[%clk 0:02:49.3]} 2. Bg5 {[%clk 0:02:58.3]}
2... d6 {[%clk 0:02:47.2]} 3. Bxf6 {[%clk 0:02:57.8]} 3... exf6 {[%clk
0:02:47.9]} 4. e3 {[%clk 0:02:58.7]} 4... g6 {[%clk 0:02:48.1]} 5. g3 {[%clk
0:02:58.7]} 5... Bg7 {[%clk 0:02:48.3]} 6. Bg2 {[%clk 0:02:59.4]} 6... c6 {[%clk
0:02:48.8]} 7. Ne2 {[%clk 0:02:59.3]} 7... O-O {[%clk 0:02:49.3]} 8. O-O {[%clk
0:02:59.8]} 8... f5 {[%clk 0:02:48.3]} 9. c4 {[%clk 0:02:58.9]} 9... Re8 {[%clk
0:02:46.1]} 10. Nbc3 {[%clk 0:02:59]} 10... Nd7 {[%clk 0:02:46]} 11. b4 {[%clk
0:02:59.6]} 11... Qc7 {[%clk 0:02:46.2]} 12. b5 {[%clk 0:02:56.9]} 12... Nf6
{[%clk 0:02:45.7]} 13. a4 {[%clk 0:02:55.4]} 13... h5 {[%clk 0:02:45.6]} 14. Qd3
{[%clk 0:02:53.3]} 14... h4 {[%clk 0:02:44.8]} 15. a5 {[%clk 0:02:40.2]} 15...
hxg3 {[%clk 0:02:41.9]} 16. hxg3 {[%clk 0:02:41.1]} 16... a6 {[%clk 0:02:36.2]}
17. bxc6 {[%clk 0:02:34.2]} 17... bxc6 {[%clk 0:02:37.1]} 18. Rfb1 {[%clk
0:02:34.4]} 18... Ng4 {[%clk 0:02:33.2]} 19. Rb6 {[%clk 0:02:31.6]} 19... Bd7
{[%clk 0:02:33.3]} 20. Rab1 {[%clk 0:02:31.7]} 20... Ra7 {[%clk 0:02:26]} 21.
Bf3 {[%clk 0:02:19.8]} 21... Bh6 {[%clk 0:02:11.5]} 22. Nf4 {[%clk 0:02:17.5]}
22... Bxf4 {[%clk 0:02:09.6]} 23. exf4 {[%clk 0:02:12.1]} 23... Kg7 {[%clk
0:02:05.7]} 24. Na2 {[%clk 0:01:35.8]} 24... Nf6 {[%clk 0:01:51.2]} 25. Nb4
{[%clk 0:01:31.6]} 25... c5 {[%clk 0:01:51.2]} 26. dxc5 {[%clk 0:01:19.5]} 26...
Qxc5 {[%clk 0:01:42.8]} 27. Qxd6 {[%clk 0:01:03.3]} 27... Qxa5 {[%clk
0:01:37.5]} 28. Qxf6+ {[%clk 0:01:02.9]} 28... Kg8 {[%clk 0:01:33.8]} 29. Nd5
{[%clk 0:00:56.6]} 29... Be6 {[%clk 0:01:30.9]} 30. Rxe6 {[%clk 0:00:31.9]}
30... fxe6 {[%clk 0:01:20.6]} 31. Qxg6+ {[%clk 0:00:31.6]} 31... Kf8 {[%clk
0:01:20.9]} 32. Nf6 {[%clk 0:00:31.8]} 32... Qd8 {[%clk 0:01:04.3]} 33. Bh5
{[%clk 0:00:16.5]} 33... a5 {[%clk 0:00:50.7]} 34. Qg8+ {[%clk 0:00:10.4]} 34...
Ke7 {[%clk 0:00:50.4]} 35. Qg7+ {[%clk 0:00:07.6]} 1-0

[Event "Late-Titled-Tuesday-Blitz-September-19-2023"]
[Site "Chess.com"]
[Date "2023.09.19"]
[Round "4"]
[White "The_Straightforward_Rook"]
[Black "ArtemDyachuk"]
[Result "0-1"]
[WhiteElo "2528"]
[BlackElo "2718"]
[TimeControl "180+1"]
[EndTime "14:36:50 PDT"]
[Termination "ArtemDyachuk won by resignation"]

1. d4 {[%clk 0:03:00.9]} 1... Nf6 {[%clk 0:02:57.8]} 2. c4 {[%clk 0:03:00.7]}
2... e6 {[%clk 0:02:57.1]} 3. Nf3 {[%clk 0:03:00.8]} 3... c5 {[%clk 0:02:57]} 4.
d5 {[%clk 0:03:00.6]} 4... d6 {[%clk 0:02:56.8]} 5. Nc3 {[%clk 0:02:59.8]} 5...
exd5 {[%clk 0:02:56.1]} 6. cxd5 {[%clk 0:02:59.9]} 6... g6 {[%clk 0:02:57]} 7.
Bf4 {[%clk 0:02:59.3]} 7... Bg7 {[%clk 0:02:56.6]} 8. Qa4+ {[%clk 0:02:57.4]}
8... Bd7 {[%clk 0:02:56.3]} 9. Qb3 {[%clk 0:02:57.8]} 9... O-O {[%clk
0:02:56.5]} 10. Bxd6 {[%clk 0:02:55.9]} 10... Ba4 {[%clk 0:02:56.1]} 11. Qxa4
{[%clk 0:02:53.3]} 11... Qxd6 {[%clk 0:02:55.8]} 12. e4 {[%clk 0:02:44.3]} 12...
Nbd7 {[%clk 0:02:54.3]} 13. Be2 {[%clk 0:02:41.7]} 13... a6 {[%clk 0:02:53.9]}
14. O-O {[%clk 0:02:36.9]} 14... b5 {[%clk 0:02:53.7]} 15. Qc2 {[%clk
0:02:37.5]} 15... Rfe8 {[%clk 0:02:48.1]} 16. Nd2 {[%clk 0:02:25.9]} 16... Nb6
{[%clk 0:02:37.1]} 17. Bf3 {[%clk 0:02:18]} 17... Nfd7 {[%clk 0:02:29.7]} 18. g3
{[%clk 0:02:16.1]} 18... Ne5 {[%clk 0:02:27.1]} 19. Bg2 {[%clk 0:02:16.7]} 19...
c4 {[%clk 0:02:27.4]} 20. Rad1 {[%clk 0:02:07.2]} 20... Nd3 {[%clk 0:02:22.4]}
21. b3 {[%clk 0:01:57.3]} 21... Nb4 {[%clk 0:02:16.4]} 22. Qc1 {[%clk
0:01:48.2]} 22... Nd3 {[%clk 0:02:16.1]} 23. Qc2 {[%clk 0:01:48]} 23... Nb4
{[%clk 0:01:43.7]} 24. Qc1 {[%clk 0:01:47.9]} 24... Rac8 {[%clk 0:01:43.8]} 25.
bxc4 {[%clk 0:01:41.3]} 25... Nxc4 {[%clk 0:01:43.7]} 26. e5 {[%clk 0:01:19.7]}
26... Qxe5 {[%clk 0:01:33.7]} 27. Nce4 {[%clk 0:01:09.7]} 27... Ne3 {[%clk
0:01:25.1]} 28. Qb1 {[%clk 0:00:59.7]} 28... Nxf1 {[%clk 0:01:20.2]} 29. Nxf1
{[%clk 0:00:58.5]} 29... Nc2 {[%clk 0:00:43.9]} 30. d6 {[%clk 0:00:58.5]} 30...
Red8 {[%clk 0:00:42]} 31. d7 {[%clk 0:00:58.4]} 31... Rc7 {[%clk 0:00:37.7]} 32.
Rd5 {[%clk 0:00:48.2]} 32... Qe7 {[%clk 0:00:35.4]} 33. Rd2 {[%clk 0:00:23.5]}
33... Nd4 {[%clk 0:00:34.6]} 34. Qd1 {[%clk 0:00:19.5]} 34... Rcxd7 {[%clk
0:00:34]} 35. Nc5 {[%clk 0:00:15.6]} 35... Qxc5 {[%clk 0:00:33.1]} 0-1

[Event "Late-Titled-Tuesday-Blitz-September-19-2023"]
[Site "Chess.com"]
[Date "2023.09.19"]
[Round "4"]
[White "Angry_Twin"]
[Black "johnathan113"]
[Result "1-0"]
[WhiteElo "2952"]
[BlackElo "2721"]
[TimeControl "180+1"]
[EndTime "14:36:53 PDT"]
[Termination "Angry_Twin won on time"]

1. e4 {[%clk 0:02:44.8]} 1... c5 {[%clk 0:02:42.6]} 2. Nf3 {[%clk 0:02:43.8]}
2... g6 {[%clk 0:02:42]} 3. d4 {[%clk 0:02:43.8]} 3... cxd4 {[%clk 0:02:42.9]}
4. Nxd4 {[%clk 0:02:44.7]} 4... Bg7 {[%clk 0:02:42.1]} 5. c4 {[%clk 0:02:45.4]}
5... Nc6 {[%clk 0:02:38.5]} 6. Be3 {[%clk 0:02:45.7]} 6... Qb6 {[%clk
0:02:34.8]} 7. Nb3 {[%clk 0:02:45.8]} 7... Qd8 {[%clk 0:02:33.8]} 8. Nc3 {[%clk
0:02:45.8]} 8... d6 {[%clk 0:02:33.3]} 9. f3 {[%clk 0:02:45.6]} 9... Bxc3+
{[%clk 0:02:29.6]} 10. bxc3 {[%clk 0:02:45.6]} 10... Nf6 {[%clk 0:02:30.3]} 11.
Qd2 {[%clk 0:02:31.5]} 11... b6 {[%clk 0:02:27.5]} 12. Bg5 {[%clk 0:02:14.6]}
12... O-O {[%clk 0:02:21.1]} 13. Rd1 {[%clk 0:02:12.5]} 13... Ba6 {[%clk
0:01:45.9]} 14. Bxf6 {[%clk 0:02:10.9]} 14... exf6 {[%clk 0:01:41.8]} 15. Qxd6
{[%clk 0:02:10.9]} 15... Ne5 {[%clk 0:01:41.8]} 16. Qd4 {[%clk 0:01:43.9]} 16...
Qc7 {[%clk 0:01:33.1]} 17. Qd6 {[%clk 0:01:43.7]} 17... Rac8 {[%clk 0:01:13.9]}
18. Qxc7 {[%clk 0:01:08.7]} 18... Rxc7 {[%clk 0:01:13.4]} 19. c5 {[%clk
0:01:09.4]} 19... Bxf1 {[%clk 0:01:11.6]} 20. Rxf1 {[%clk 0:01:10.3]} 20... bxc5
{[%clk 0:01:09.9]} 21. Ke2 {[%clk 0:01:10.9]} 21... Rb8 {[%clk 0:00:53.1]} 22.
Rd2 {[%clk 0:01:01.9]} 22... c4 {[%clk 0:00:42.5]} 23. Nd4 {[%clk 0:01:01.9]}
23... Rc5 {[%clk 0:00:42.6]} 24. Nc2 {[%clk 0:00:59.5]} 24... Rb2 {[%clk
0:00:23.5]} 25. f4 {[%clk 0:00:44.8]} 25... Nd3 {[%clk 0:00:20.5]} 26. Ne3
{[%clk 0:00:44.9]} 26... Rxd2+ {[%clk 0:00:14.9]} 27. Kxd2 {[%clk 0:00:45.8]}
27... Kg7 {[%clk 0:00:09]} 28. Nxc4 {[%clk 0:00:40.3]} 28... Nxf4 {[%clk
0:00:08.3]} 29. Nd6 {[%clk 0:00:40.5]} 29... Ne6 {[%clk 0:00:02.2]} 30. Ne8+
{[%clk 0:00:40.4]} 1-0

[Event "Late-Titled-Tuesday-Blitz-September-19-2023"]
[Site "Chess.com"]
[Date "2023.09.19"]
[Round "4"]
[White "Bauman_Guy"]
[Black "bipe137"]
[Result "1-0"]
[WhiteElo "2900"]
[BlackElo "2557"]
[TimeControl "180+1"]
[EndTime "14:36:54 PDT"]
[Termination "Bauman_Guy won by resignation"]

1. e4 {[%clk 0:03:00.9]} 1... c5 {[%clk 0:02:59.6]} 2. Nf3 {[%clk 0:03:01]} 2...
e6 {[%clk 0:02:59]} 3. d4 {[%clk 0:03:01.7]} 3... cxd4 {[%clk 0:02:59.3]} 4.
Nxd4 {[%clk 0:03:02.6]} 4... Nc6 {[%clk 0:02:58.7]} 5. Nc3 {[%clk 0:03:02.8]}
5... Nf6 {[%clk 0:02:58.5]} 6. Ndb5 {[%clk 0:03:01.9]} 6... d6 {[%clk
0:02:58.6]} 7. Bf4 {[%clk 0:03:01.7]} 7... e5 {[%clk 0:02:58.4]} 8. Bg5 {[%clk
0:03:02.2]} 8... a6 {[%clk 0:02:58.8]} 9. Na3 {[%clk 0:03:02.5]} 9... Be6 {[%clk
0:02:59]} 10. Nc4 {[%clk 0:03:01.9]} 10... Rb8 {[%clk 0:02:59.4]} 11. Ne3 {[%clk
0:03:01.8]} 11... Be7 {[%clk 0:02:59.6]} 12. Nf5 {[%clk 0:02:48.2]} 12... Bxf5
{[%clk 0:02:44.1]} 13. exf5 {[%clk 0:02:49.1]} 13... Nd4 {[%clk 0:02:37.4]} 14.
Bd3 {[%clk 0:02:46.4]} 14... d5 {[%clk 0:02:31.8]} 15. Ne2 {[%clk 0:02:40.5]}
15... Nxe2 {[%clk 0:02:27.6]} 16. Bxe2 {[%clk 0:02:41.4]} 16... Ne4 {[%clk
0:02:22.3]} 17. Bxe7 {[%clk 0:02:37]} 17... Kxe7 {[%clk 0:02:22.5]} 18. O-O
{[%clk 0:02:35.6]} 18... Re8 {[%clk 0:02:16.2]} 19. c4 {[%clk 0:02:22.2]} 19...
Nf6 {[%clk 0:02:12.5]} 20. cxd5 {[%clk 0:02:20.1]} 20... Qxd5 {[%clk 0:02:10.6]}
21. Qe1 {[%clk 0:01:58.4]} 21... Kf8 {[%clk 0:02:07.2]} 22. Qb4+ {[%clk
0:01:44.5]} 22... Kg8 {[%clk 0:02:06]} 23. Rfd1 {[%clk 0:01:44.7]} 23... Qe4
{[%clk 0:01:45.8]} 24. Qxe4 {[%clk 0:01:43.4]} 24... Nxe4 {[%clk 0:01:46.7]} 25.
f3 {[%clk 0:01:44.3]} 25... Nf6 {[%clk 0:01:45.5]} 26. Rac1 {[%clk 0:01:42]}
26... Kf8 {[%clk 0:01:41.5]} 27. Kf2 {[%clk 0:01:41.8]} 27... Red8 {[%clk
0:01:35.9]} 28. g4 {[%clk 0:01:41.3]} 28... Rxd1 {[%clk 0:01:31.5]} 29. Rxd1
{[%clk 0:01:34.9]} 29... Ke7 {[%clk 0:01:30.4]} 30. Bc4 {[%clk 0:01:34.1]} 30...
Ne8 {[%clk 0:01:28.2]} 31. Bb3 {[%clk 0:01:23.4]} 31... f6 {[%clk 0:01:23.3]}
32. Bg8 {[%clk 0:01:19.9]} 32... h6 {[%clk 0:01:22.4]} 33. Kg3 {[%clk
0:01:20.2]} 33... Nd6 {[%clk 0:01:20.5]} 34. Be6 {[%clk 0:01:20.1]} 34... b5
{[%clk 0:01:17.4]} 35. Kh4 {[%clk 0:01:18.9]} 35... Rb7 {[%clk 0:01:12.6]} 36.
Rc1 {[%clk 0:01:17.4]} 36... g6 {[%clk 0:00:30]} 37. Bd5 {[%clk 0:01:11]} 37...
g5+ {[%clk 0:00:23.3]} 38. Kh5 {[%clk 0:01:11.3]} 38... Rd7 {[%clk 0:00:21.4]}
39. Be6 {[%clk 0:01:09.3]} 39... Rb7 {[%clk 0:00:20.5]} 40. Kxh6 {[%clk
0:01:02.5]} 40... e4 {[%clk 0:00:18.2]} 41. fxe4 {[%clk 0:00:59.8]} 41... Nf7+
{[%clk 0:00:13.5]} 42. Bxf7 {[%clk 0:00:56.3]} 42... Kxf7 {[%clk 0:00:14.4]} 43.
e5 {[%clk 0:00:56.9]} 43... Rb8 {[%clk 0:00:11.8]} 44. Rc7+ {[%clk 0:00:56.4]}
1-0